bitfinex/quotes_BTCUSD_20211001
["timestamp","ask_amount","ask_price","bid_price","bid_amount"]
[1633082525912,0.11049017,44970.0,44969.0,0.19445212]
[1633082526913,0.11049017,44970.0,44969.0,0.28905502]
[1633082527112,0.11049017,44970.0,44969.0,0.19445212]
[1633082529418,0.11740606,44970.0,44969.0,0.19022808]
[1633082530419,0.10344775,44967.0,44963.0,0.222418]
[1633082530619,0.00123438,44964.0,44963.0,0.222418]
[1633082531419,0.09522849,44964.0,44963.0,0.222418]
[1633082531620,0.29164423,44964.0,44963.0,0.222418]
[1633082533925,0.22668,44963.0,44958.0,0.01317486]
[1633082534121,0.00127407,44959.0,44958.0,0.01317486]
[1633082534321,0.22795407,44959.0,44958.0,0.01317486]
[1633082534725,0.22803215,44959.0,44958.0,0.01317486]
[1633082534928,0.00828408,44959.0,44958.0,0.32373328]
[1633082535324,0.00828408,44959.0,44958.0,0.23234814]
[1633082535325,0.00701001,44959.0,44958.0,0.23234814]
[1633082536793,7.808e-05,44959.0,44958.0,0.23234814]
[1633082536987,7.808e-05,44959.0,44958.0,0.2365589]
[1633082537987,7.808e-05,44959.0,44958.0,0.2413549]
[1633082538395,7.808e-05,44959.0,44956.0,0.13053557]
[1633082538787,7.808e-05,44959.0,44955.0,0.15876066]
[1633082538989,7.808e-05,44959.0,44946.0,0.1998]
[1633082538990,0.00127553,44958.0,44946.0,0.1998]
[1633082539200,0.00122481,44954.0,44946.0,0.1998]
[1633082539391,0.00122481,44954.0,44945.0,0.0999]
[1633082539607,0.00122481,44954.0,44953.0,0.28966125]
[1633082539791,0.56458303,44954.0,44953.0,0.28966125]
[1633082539990,1.36757461,44954.0,44953.0,0.28966125]
[1633082540390,1.37661922,44954.0,44953.0,0.28966125]
[1633082540590,1.37661922,44954.0,44953.0,0.13506034]
[1633082540989,1.47661922,44954.0,44953.0,0.13506034]
[1633082541190,2.65761922,44954.0,44953.0,0.13506034]
[1633082542393,2.64857461,44954.0,44953.0,0.13895006]
[1633082542791,2.64857461,44954.0,44942.0,0.06112085]
[1633082542792,0.90467646,44953.0,44942.0,0.06112085]
[1633082542997,0.00123855,44945.0,44942.0,0.06112085]
[1633082543190,0.33509155,44945.0,44942.0,0.06112085]
[1633082543390,0.56365376,44945.0,44942.0,0.06112085]
[1633082543592,0.79034676,44945.0,44942.0,0.06112085]
[1633082543793,1.17193787,44945.0,44942.0,0.06112085]
[1633082544192,0.99577902,44945.0,44942.0,0.06112085]
[1633082545195,1.25969715,44945.0,44942.0,2.16145815]
[1633082545395,0.76914925,44945.0,44944.0,0.44478014]
[1633082545695,0.53817558,44945.0,44944.0,0.44478014]
[1633082545896,0.54917746,44945.0,44944.0,0.44478014]
[1633082547898,0.33515478,44945.0,44944.0,0.44478014]
[1633082549496,0.00130178,44945.0,44944.0,0.44478014]
[1633082551301,0.20810828,44945.0,44944.0,0.44478014]
[1633082553299,0.1971064,44945.0,44944.0,0.44478014]
[1633082553904,0.4237994,44945.0,44944.0,0.44478014]
[1633082554705,0.5337994,44945.0,44944.0,0.44478014]
[1633082556008,0.52713128,44945.0,44944.0,0.44478014]
[1633082556605,0.52713128,44945.0,44944.0,2.67619966]
[1633082556804,0.12230366,44945.0,44944.0,2.67619966]
[1633082557004,0.31076979,44945.0,44944.0,2.67619966]
[1633082557404,0.54894551,44945.0,44944.0,2.67619966]
[1633082557911,0.87214551,44945.0,44944.0,0.44478014]
[1633082558108,1.09883851,44945.0,44944.0,0.44478014]
[1633082558507,1.42563851,44945.0,44944.0,0.44478014]
[1633082558908,1.66463663,44945.0,44944.0,0.44478014]
[1633082559106,1.11463663,44945.0,44944.0,0.44478014]
[1633082559910,1.11463663,44945.0,44944.0,0.38034731]
[1633082560511,1.16463663,44945.0,44944.0,0.38034731]
[1633082560909,1.38783663,44945.0,44944.0,0.38034731]
[1633082562311,1.98783663,44945.0,44944.0,0.18704226]
[1633082562510,1.40012482,44945.0,44944.0,0.18704226]
[1633082562911,1.21165869,44945.0,44944.0,0.18704226]
[1633082563311,1.56165869,44945.0,44944.0,0.18704226]
[1633082563512,1.21165869,44945.0,44944.0,0.18704226]
[1633082564114,2.39265869,44945.0,44944.0,0.18704226]
[1633082564313,2.38165608,44945.0,44944.0,0.18704226]
[1633082564913,1.20065608,44945.0,44944.0,0.18704226]
[1633082565313,0.18704226,44944.0,44942.0,0.06112085]
[1633082565513,0.18704226,44944.0,44939.0,0.0205]
[1633082565514,0.11573849,44942.0,44939.0,0.0205]
[1633082565720,1.75264567,44940.0,44939.0,0.0205]
[1633082565914,2.39264567,44940.0,44939.0,0.0205]
[1633082566519,2.77107432,44940.0,44939.0,0.0205]
[1633082566715,2.99427432,44940.0,44939.0,0.0205]
[1633082567313,3.32825832,44940.0,44939.0,0.0205]
[1633082567715,1.0,44939.0,44926.0,0.222648]
[1633082567916,0.0012712,44927.0,44926.0,0.222648]
[1633082568116,0.0012712,44927.0,44923.0,0.0004]
[1633082568321,0.00124444,44924.0,44923.0,0.0004]
[1633082568517,0.58580339,44924.0,44923.0,0.0004]
[1633082569315,0.48455895,44924.0,44923.0,0.0004]
[1633082569515,0.48582181,44924.0,44923.0,0.0004]
[1633082570317,0.58582181,44924.0,44923.0,0.0004]
[1633082570919,0.48582181,44924.0,44923.0,0.0004]
[1633082571319,0.58582181,44924.0,44923.0,0.0004]
[1633082571721,0.58582181,44924.0,44923.0,0.00564596]
[1633082572118,0.80902181,44924.0,44923.0,0.00564596]
[1633082572918,0.58582181,44924.0,44923.0,0.00564596]
[1633082573521,0.59685509,44924.0,44923.0,0.00564596]
[1633082573717,1.88785509,44924.0,44923.0,0.00564596]
[1633082573918,1.94467509,44924.0,44923.0,0.00564596]
[1633082574917,2.44467509,44924.0,44923.0,0.00564596]
[1633082575319,2.43364181,44924.0,44923.0,0.00564596]
[1633082575922,0.09931595,44920.0,44917.0,0.14130468]
[1633082576125,0.81204657,44919.0,44917.0,0.14130468]
[1633082576321,0.19765618,44918.0,44917.0,0.14130468]
[1633082576521,0.58116918,44918.0,44917.0,0.14130468]
[1633082576921,0.58116918,44918.0,44917.0,0.05225154]
[1633082577125,0.58246078,44918.0,44913.0,0.0008]
[1633082577324,0.58246078,44918.0,44910.0,0.0008]
[1633082577325,0.19617828,44911.0,44910.0,0.0008]
[1633082577527,0.68057867,44911.0,44910.0,0.0008]
[1633082578025,0.07533603,44906.0,44905.0,0.222729]
[1633082578223,0.288348,44906.0,44905.0,0.222729]
[1633082578423,0.05682,44906.0,44905.0,0.222729]
[1633082578627,0.25073934,44906.0,44905.0,0.222729]
[1633082578823,0.26179893,44906.0,44905.0,0.222729]
[1633082579023,0.31179893,44906.0,44905.0,0.222729]
[1633082579225,0.31583883,44906.0,44905.0,0.222729]
[1633082579828,0.31398884,44906.0,44905.0,0.222729]
[1633082580127,0.06456688,44925.0,44905.0,0.222729]
[1633082580128,0.0223,44920.0,44907.0,1.43925429]
[1633082580326,0.5,44924.0,44921.0,0.08530089]
[1633082580524,0.05,44926.0,44921.0,0.08530089]
[1633082580525,0.05,44926.0,44923.0,0.00128514]
[1633082580725,0.556774,44938.0,44924.0,0.0228301]
[1633082580726,0.001286,44937.0,44924.0,0.0228301]
[1633082580926,0.2,44930.0,44925.0,0.2207619]
[1633082581124,0.2,44930.0,44926.0,0.0223]
[1633082581326,0.20380736,44929.0,44926.0,0.0223]
[1633082581598,0.20380736,44929.0,44923.0,0.00389236]
[1633082581727,0.222701,44926.0,44923.0,0.00389236]
[1633082581927,0.226693,44925.0,44923.0,0.00389236]
[1633082582328,0.00122882,44924.0,44914.0,0.13019136]
[1633082582526,0.09269617,44919.0,44911.0,0.2232161]
[1633082582724,0.20350876,44915.0,44912.0,0.0005301]
[1633082582925,0.25350876,44915.0,44911.0,0.2232161]
[1633082583326,0.25350876,44915.0,44913.0,0.00524718]
[1633082584588,0.00980847,44914.0,44913.0,0.00524718]
[1633082584728,0.0049163,44914.0,44913.0,0.00524718]
[1633082585730,0.1149163,44914.0,44913.0,0.00524718]
[1633082586331,0.11,44914.0,44913.0,0.00524718]
[1633082586533,0.11,44914.0,44913.0,0.00943643]
[1633082589937,0.11736314,44914.0,44913.0,0.00524718]
[1633082591936,0.11736314,44914.0,44913.0,0.00943645]
[1633082591937,0.11,44914.0,44913.0,0.00943645]
[1633082595439,0.11736314,44914.0,44913.0,0.00524718]
[1633082596240,0.11736314,44914.0,44911.0,0.21393318]
[1633082596642,0.30666271,44914.0,44911.0,0.21393318]
[1633082596842,0.11736314,44914.0,44911.0,0.21393318]
[1633082597041,0.334089,44913.0,44911.0,0.21393318]
[1633082597240,0.17832734,44912.0,44911.0,0.21393318]
[1633082597841,0.36726897,44912.0,44911.0,0.21393318]
[1633082599044,0.45589232,44912.0,44907.0,0.15266966]
[1633082599243,0.45589232,44912.0,44907.0,0.0884]
[1633082599244,0.226693,44911.0,44907.0,0.0884]
[1633082599445,0.276693,44911.0,44907.0,0.0884]
[1633082599708,0.276693,44911.0,44906.0,0.40308884]
[1633082599907,0.499465,44911.0,44906.0,0.40308884]
[1633082600306,0.33417,44909.0,44906.0,0.40308884]
[1633082600505,0.65679797,44908.0,44906.0,0.40308884]
[1633082600704,0.19020991,44907.0,44906.0,0.40308884]
[1633082600906,0.4742759,44907.0,44906.0,0.40308884]
[1633082601908,0.8084159,44907.0,44906.0,0.40308884]
[1633082602909,0.80104291,44907.0,44906.0,0.40308884]
[1633082603113,0.80104291,44907.0,44906.0,0.40726936]
[1633082605514,0.57434991,44907.0,44906.0,0.31816936]
[1633082606123,0.57556127,44907.0,44906.0,0.31816936]
[1633082606315,0.57556127,44907.0,44906.0,0.31398884]
[1633082606515,0.58293501,44907.0,44906.0,0.31398884]
[1633082607117,0.58293501,44907.0,44901.0,0.0274]
[1633082607118,0.12694658,44905.0,44901.0,0.0274]
[1633082607323,0.22236691,44902.0,44901.0,0.0274]
[1633082607516,0.49905991,44902.0,44901.0,0.0274]
[1633082608117,0.82524194,44902.0,44901.0,0.0274]
[1633082608318,1.15945394,44902.0,44901.0,0.0274]
[1633082608516,1.15945394,44902.0,44901.0,0.03157425]
[1633082609116,1.15752706,44902.0,44901.0,0.03157425]
[1633082610518,1.06603223,44902.0,44901.0,0.03157425]
[1633082611519,1.14500276,44902.0,44901.0,0.03157425]
[1633082611921,1.14500276,44902.0,44901.0,0.0274]
[1633082612119,1.15238408,44902.0,44901.0,0.0274]
[1633082613921,1.25500276,44902.0,44901.0,0.03157427]
[1633082614920,1.45500276,44902.0,44901.0,0.03157427]
[1633082616726,2.75830276,44902.0,44901.0,0.03157427]
[1633082616925,2.99830276,44902.0,44901.0,0.03157427]
[1633082617124,1.81730276,44902.0,44901.0,0.03157427]
[1633082617326,1.81730276,44902.0,44901.0,0.0274]
[1633082617527,1.82468408,44902.0,44901.0,0.0274]
[1633082618531,1.58468408,44902.0,44901.0,0.0274]
[1633082619529,1.47730276,44902.0,44901.0,0.0274]
[1633082619729,1.25620586,44902.0,44901.0,0.03157429]
[1633082619930,1.59620586,44902.0,44901.0,0.03157429]
[1633082620335,2.77848878,44902.0,44901.0,0.03157429]
[1633082620932,3.00168878,44902.0,44901.0,0.03157429]
[1633082621531,3.00168878,44902.0,44901.0,0.02157429]
[1633082622135,1.82068878,44902.0,44901.0,0.02157429]
[1633082622935,1.82068878,44902.0,44901.0,0.0174]
[1633082623132,1.8280701,44902.0,44901.0,0.0174]
[1633082623933,3.0090701,44902.0,44901.0,0.0174]
[1633082624734,2.7858701,44902.0,44901.0,0.0174]
[1633082625136,2.77848878,44902.0,44901.0,0.0174]
[1633082625333,2.77848878,44902.0,44901.0,0.02157432]
[1633082627337,3.00168878,44902.0,44901.0,0.02157432]
[1633082627536,2.77848878,44902.0,44901.0,0.02157432]
[1633082628336,2.77848878,44902.0,44901.0,0.0174]
[1633082628535,2.7858701,44902.0,44901.0,0.0174]
[1633082628736,3.0090701,44902.0,44901.0,0.0174]
[1633082628937,2.7858701,44902.0,44901.0,0.0174]
[1633082629739,1.29121237,44902.0,44901.0,0.0174]
[1633082629939,1.02762945,44902.0,44901.0,0.0174]
[1633082630137,1.02635944,44902.0,44901.0,0.0174]
[1633082630740,1.01897812,44902.0,44901.0,0.02157434]
[1633082631140,1.01897812,44902.0,44901.0,0.00884992]
[1633082633344,0.9696643,44902.0,44901.0,0.00884992]
[1633082633939,0.9696643,44902.0,44901.0,0.00467558]
[1633082634142,0.97704562,44902.0,44901.0,0.00467558]
[1633082635141,1.02704562,44902.0,44901.0,0.00467558]
[1633082636145,1.0196643,44902.0,44901.0,0.00467558]
[1633082636345,1.0196643,44902.0,44901.0,0.00884994]
[1633082639345,1.0196643,44902.0,44901.0,0.00467558]
[1633082639546,1.02704562,44902.0,44901.0,0.00467558]
[1633082639948,1.02833772,44902.0,44901.0,0.00467558]
[1633082640150,0.00275548,44901.0,44900.0,0.0008]
[1633082640349,0.00275548,44901.0,44896.0,0.0008]
[1633082640350,0.226761,44899.0,44896.0,0.0008]
[1633082640551,0.46202185,44898.0,44896.0,0.0008]
[1633082640749,1.64302185,44898.0,44896.0,0.0008]
[1633082640950,1.74302185,44898.0,44896.0,0.0008]
[1633082641752,1.74302185,44898.0,44897.0,0.00509455]
[1633082643250,1.74302185,44898.0,44897.0,0.00396455]
[1633082643251,2.04302185,44898.0,44897.0,0.00396455]
[1633082643458,2.28302185,44898.0,44897.0,0.00396455]
[1633082644850,2.28302185,44898.0,44897.0,7e-05]
[1633082645050,2.51561427,44898.0,44897.0,7e-05]
[1633082646852,0.31123786,44894.0,44890.0,0.18364772]
[1633082647052,0.52274871,44893.0,44890.0,0.18364772]
[1633082647254,0.42274871,44893.0,44890.0,0.18364772]
[1633082647451,0.1,44892.0,44890.0,0.18364772]
[1633082647651,0.19224324,44891.0,44890.0,0.18364772]
[1633082648652,0.41900424,44891.0,44890.0,0.18364772]
[1633082649051,0.51900424,44891.0,44890.0,0.18364772]
[1633082650454,0.57874838,44891.0,44890.0,0.18364772]
[1633082650853,0.52874838,44891.0,44890.0,0.18364772]
[1633082651055,0.47874838,44891.0,44890.0,0.18364772]
[1633082651255,0.57874838,44891.0,44890.0,0.18364772]
[1633082651655,0.57874838,44891.0,44887.0,0.0008]
[1633082651855,0.326761,44890.0,44887.0,0.0008]
[1633082652055,0.51361689,44890.0,44887.0,0.0008]
[1633082652855,0.51361689,44890.0,44889.0,0.00469524]
[1633082653056,0.51482127,44890.0,44889.0,0.00469524]
[1633082653656,0.51361689,44890.0,44889.0,0.00469524]
[1633082655056,0.62361689,44890.0,44889.0,0.00469524]
[1633082655860,0.62361689,44890.0,44889.0,0.0008]
[1633082656058,0.63336259,44890.0,44889.0,0.0008]
[1633082657319,0.83336259,44890.0,44889.0,0.0008]
[1633082657917,0.73336259,44890.0,44889.0,0.0008]
[1633082658119,0.72361689,44890.0,44889.0,0.0008]
[1633082658317,0.72361689,44890.0,44889.0,0.00469524]
[1633082659321,0.72326089,44890.0,44889.0,0.00469524]
[1633082660521,0.82326089,44890.0,44889.0,0.00469524]
[1633082661321,0.82326089,44890.0,44889.0,0.0008]
[1633082661520,0.83300659,44890.0,44889.0,0.0008]
[1633082662723,2.01400659,44890.0,44889.0,0.0008]
[1633082663626,2.00426089,44890.0,44889.0,0.0008]
[1633082663824,2.00426089,44890.0,44889.0,0.00469524]
[1633082664628,0.636405,44890.0,44889.0,0.00469524]
[1633082666225,0.536405,44890.0,44889.0,0.00469524]
[1633082666625,0.536405,44890.0,44888.0,0.00089524]
[1633082667027,0.8804417,44890.0,44888.0,0.00089524]
[1633082669226,0.870696,44890.0,44888.0,0.00089524]
[1633082671834,0.670696,44890.0,44888.0,0.00089524]
[1633082672433,0.01169411,44889.0,44888.0,0.00089524]
[1633082674822,0.444291,44890.0,44888.0,0.00089524]
[1633082675820,0.444291,44890.0,44886.0,1.91580431]
[1633082676219,0.26238911,44889.0,44886.0,1.91580431]
[1633082676421,0.334293,44888.0,44886.0,0.00127801]
[1633082676620,0.42009466,44887.0,44886.0,0.00127801]
[1633082678021,0.43179269,44887.0,44886.0,0.00127801]
[1633082678621,0.4289776,44887.0,44886.0,0.00127801]
[1633082679323,0.23847303,44887.0,44886.0,0.00127801]
[1633082679523,0.43686403,44887.0,44886.0,0.00127801]
[1633082679926,0.23847303,44887.0,44886.0,0.00127801]
[1633082680123,0.226775,44887.0,44886.0,0.00127801]
[1633082680725,0.41400968,44887.0,44886.0,0.00127801]
[1633082680925,0.226775,44887.0,44886.0,0.00127801]
[1633082683527,0.23847303,44887.0,44886.0,0.00127801]
[1633082683731,0.01169803,44887.0,44886.0,0.00127801]
[1633082685132,0.01169803,44887.0,44885.0,0.0008]
[1633082685133,0.000385,44886.0,44885.0,0.0008]
[1633082686530,0.18991855,44886.0,44885.0,0.0008]
[1633082686735,0.41669355,44886.0,44885.0,0.0008]
[1633082686932,0.22716,44886.0,44885.0,7.412e-05]
[1633082687934,0.41330438,44886.0,44885.0,7.412e-05]
[1633082688135,0.22716,44886.0,44885.0,7.412e-05]
[1633082688934,0.42633982,44886.0,44885.0,7.412e-05]
[1633082689133,0.2388596,44886.0,44885.0,7.412e-05]
[1633082690743,0.0120846,44886.0,44885.0,7.412e-05]
[1633082691141,0.000385,44886.0,44885.0,7.412e-05]
[1633082694544,0.000385,44886.0,44885.0,1.37237412]
[1633082694545,0.0120846,44886.0,44885.0,1.37237412]
[1633082694946,0.0120846,44886.0,44885.0,1.37362127]
[1633082695613,0.0120846,44886.0,44885.0,0.02362127]
[1633082696747,0.000385,44886.0,44885.0,0.02362127]
[1633082696946,0.000385,44886.0,44885.0,0.52362127]
[1633082697747,0.000385,44886.0,44885.0,0.02362127]
[1633082699350,0.000385,44886.0,44885.0,0.02162827]
[1633082699947,0.0120846,44886.0,44885.0,0.02162827]
[1633082700152,0.0120846,44886.0,44883.0,0.21157201]
[1633082700349,0.0120846,44886.0,44884.0,0.0223]
[1633082701148,0.1220846,44886.0,44884.0,0.0223]
[1633082701610,0.1720846,44886.0,44884.0,0.0223]
[1633082702352,0.160385,44886.0,44884.0,0.0223]
[1633082705354,0.160385,44886.0,44884.0,0.356543]
[1633082705554,0.01404682,44885.0,44884.0,0.356543]
[1633082705954,0.01404682,44885.0,44884.0,0.351543]
[1633082706953,0.01404682,44885.0,44884.0,0.0173]
[1633082707756,0.160385,44886.0,44884.0,0.0173]
[1633082709358,0.160385,44886.0,44885.0,0.50042163]
[1633082709557,0.160385,44886.0,44885.0,0.7301365]
[1633082710359,0.160385,44886.0,44885.0,0.93091949]
[1633082710618,0.160385,44886.0,44885.0,0.7301365]
[1633082710759,0.110385,44886.0,44885.0,1.28102571]
[1633082710967,0.0641773,44898.0,44894.0,0.1]
[1633082711168,0.00275548,44901.0,44894.0,0.1]
[1633082711169,0.06697339,44901.0,44897.0,0.00127974]
[1633082711362,0.06697339,44901.0,44900.0,0.00123971]
[1633082711363,0.00275548,44901.0,44900.0,0.00123971]
[1633082711561,0.2580983,44903.0,44900.0,0.25592653]
[1633082711562,0.19161809,44903.0,44900.0,0.25592653]
[1633082711762,0.19161809,44903.0,44902.0,0.00127638]
[1633082711962,0.12694658,44905.0,44902.0,0.02357638]
[1633082712163,0.12694658,44905.0,44903.0,0.22786819]
[1633082712361,0.12694658,44905.0,44904.0,0.0223]
[1633082712662,0.12694658,44905.0,44904.0,0.60952888]
[1633082712866,0.12694658,44905.0,44904.0,0.61075888]
[1633082713265,0.12694658,44905.0,44904.0,0.68820268]
[1633082714665,0.12694658,44905.0,44904.0,0.68862431]
[1633082715862,0.12694658,44905.0,44904.0,0.91182431]
[1633082716464,0.14096181,44905.0,44904.0,0.91182431]
[1633082716863,0.25096181,44905.0,44904.0,0.91129421]
[1633082718665,0.25096181,44905.0,44904.0,0.68809421]
[1633082720326,0.25096181,44905.0,44904.0,0.43672567]
[1633082720526,0.25096181,44905.0,44904.0,0.64606083]
[1633082721533,0.25096181,44905.0,44904.0,0.43672567]
[1633082721929,0.25096181,44905.0,44904.0,0.64378388]
[1633082723329,0.25096181,44905.0,44904.0,0.43672567]
[1633082724531,0.25096181,44905.0,44904.0,0.35928187]
[1633082724734,0.25096181,44905.0,44904.0,0.02272163]
[1633082724935,0.30096181,44905.0,44904.0,0.00042163]
[1633082725532,0.37814464,44905.0,44904.0,0.00042163]
[1633082725736,1.0722541,44905.0,44904.0,0.00042163]
[1633082725936,1.17348969,44905.0,44904.0,0.00042163]
[1633082726134,0.92935523,44905.0,44904.0,0.00042163]
[1633082726535,1.47935523,44905.0,44904.0,0.00042163]
[1633082726937,0.0708524,44897.0,44894.0,0.03593899]
[1633082727533,0.01402981,44896.0,44894.0,0.03593899]
[1633082727734,0.09645477,44898.0,44894.0,0.03593899]
[1633082727934,0.1819702,44897.0,44894.0,0.03593899]
[1633082728333,0.2319702,44897.0,44894.0,0.03593899]
[1633082729136,0.2319702,44897.0,44895.0,0.09679878]
[1633082729339,0.1819702,44897.0,44895.0,0.09679878]
[1633082729536,0.1819702,44897.0,44894.0,0.03715242]
[1633082729734,0.1819702,44897.0,44895.0,0.00533975]
[1633082730540,0.1819702,44897.0,44895.0,0.09458383]
[1633082731139,0.1819702,44897.0,44895.0,0.00533975]
[1633082732551,0.226775,44896.0,44895.0,0.00533975]
[1633082732947,0.00701571,44895.0,44894.0,0.03593899]
[1633082734951,0.19283159,44904.0,44894.0,0.04127742]
[1633082735148,0.05,44904.0,44894.0,0.04127742]
[1633082735352,0.21177548,44898.0,44894.0,0.04127742]
[1633082735850,0.21177548,44898.0,44897.0,2.57333552]
[1633082736048,0.32177548,44898.0,44897.0,2.57333552]
[1633082738451,0.32878714,44898.0,44897.0,2.57333552]
[1633082740452,0.32177548,44898.0,44897.0,2.57333552]
[1633082740652,0.32177548,44898.0,44897.0,2.578678]
[1633082741054,0.11,44898.0,44897.0,2.578678]
[1633082742058,0.34097333,44898.0,44897.0,2.578678]
[1633082743064,0.11,44898.0,44897.0,2.578678]
[1633082743660,0.11,44898.0,44897.0,0.00534248]
[1633082743859,0.11,44898.0,44894.0,0.03593899]
[1633082744061,0.11701166,44898.0,44894.0,0.03593899]
[1633082744263,0.33194935,44898.0,44894.0,0.03593899]
[1633082744460,0.11701166,44898.0,44894.0,0.03593899]
[1633082745462,0.45122066,44898.0,44894.0,0.03593899]
[1633082745663,0.17810443,44897.0,44894.0,0.03593899]
[1633082746063,0.17810443,44897.0,44895.0,0.00534049]
[1633082749467,0.17810443,44897.0,44894.0,0.03593899]
[1633082749668,0.0070149,44896.0,44894.0,0.03593899]
[1633082750272,0.19266446,44896.0,44894.0,0.03593899]
[1633082750871,0.0070149,44896.0,44894.0,0.03593899]
[1633082751075,0.0182476,44894.0,44887.0,0.222811]
[1633082751273,0.00122917,44889.0,44885.0,0.0999]
[1633082751472,0.02352917,44889.0,44885.0,0.0999]
[1633082751671,0.22170963,44888.0,44882.0,0.0006]
[1633082751871,0.27170963,44888.0,44882.0,0.0006]
[1633082752273,0.18252204,44885.0,44882.0,0.0006]
[1633082752474,0.21219247,44884.0,44882.0,0.0006]
[1633082753342,0.54651047,44884.0,44882.0,0.0006]
[1633082753541,0.4191338,44883.0,44882.0,0.0006]
[1633082754142,0.226775,44883.0,44882.0,0.0006]
[1633082754541,0.18252204,44885.0,44882.0,0.0006]
[1633082754941,0.00703435,44884.0,44882.0,0.0006]
[1633082756941,0.00703435,44884.0,44883.0,0.00532372]
[1633082756942,0.11,44884.0,44883.0,0.00532372]
[1633082757948,0.336775,44884.0,44883.0,0.00532372]
[1633082760346,0.336775,44884.0,44882.0,0.0006]
[1633082760548,0.11703354,44884.0,44882.0,0.0006]
[1633082762350,0.11,44884.0,44882.0,0.0006]
[1633082762551,0.11,44884.0,44883.0,0.00532374]
[1633082763748,0.11123703,44884.0,44883.0,0.00532374]
[1633082763955,0.38801203,44884.0,44883.0,0.00532374]
[1633082764149,0.57326036,44884.0,44883.0,0.00532374]
[1633082764547,0.38801203,44884.0,44883.0,0.00532374]
[1633082764749,0.57431758,44884.0,44883.0,0.00532374]
[1633082765349,0.57431758,44884.0,44883.0,0.00432374]
[1633082765949,0.38801203,44884.0,44882.0,0.0006]
[1633082766151,0.226775,44883.0,44882.0,0.0006]
[1633082766552,0.41056743,44883.0,44882.0,0.0006]
[1633082766951,0.41056743,44883.0,44881.0,0.00025366]
[1633082767151,0.226775,44883.0,44881.0,0.00025366]
[1633082767453,0.11,44884.0,44882.0,0.00127511]
[1633082767654,0.11,44884.0,44883.0,0.923507]
[1633082767852,0.11,44884.0,44883.0,0.9240371]
[1633082768052,0.09900001,44884.0,44883.0,0.023507]
[1633082768552,0.09900001,44884.0,44883.0,0.11971695]
[1633082772156,0.09900001,44884.0,44883.0,0.023507]
[1633082782559,0.2892062,44884.0,44883.0,0.023507]
[1633082783160,0.2892062,44884.0,44882.0,0.222828]
[1633082783359,0.18752359,44883.0,44882.0,0.222828]
[1633082783762,0.05682,44883.0,44882.0,0.222828]
[1633082784363,0.24644443,44883.0,44882.0,0.222828]
[1633082784561,0.24644443,44883.0,44882.0,0.23349422]
[1633082785561,0.24857056,44883.0,44882.0,0.23349422]
[1633082786163,0.23889322,44883.0,44882.0,0.23349422]
[1633082786563,0.05682,44883.0,44882.0,0.23349422]
[1633082786765,0.2407639,44883.0,44882.0,0.23349422]
[1633082786964,0.05682,44883.0,44882.0,0.23349422]
[1633082787970,0.05682,44883.0,44882.0,0.222828]
[1633082789967,0.05682,44883.0,44882.0,0.23349424]
[1633082791637,0.2508163,44883.0,44882.0,0.23349424]
[1633082791770,0.2508163,44883.0,44882.0,0.01066624]
[1633082791771,0.4740163,44883.0,44882.0,0.01066624]
[1633082791976,0.7007913,44883.0,44882.0,0.01066624]
[1633082792366,0.4775913,44883.0,44882.0,0.01066624]
[1633082793569,0.4775913,44883.0,44881.0,0.00025366]
[1633082793768,0.41511731,44882.0,44881.0,0.00025366]
[1633082793970,0.52193731,44882.0,44881.0,0.00025366]
[1633082795573,0.74513731,44882.0,44881.0,0.0109187]
[1633082796772,0.51836231,44882.0,44881.0,0.0109187]
[1633082798972,0.51836231,44882.0,44881.0,0.00025366]
[1633082800981,0.51836231,44882.0,44881.0,0.01091872]
[1633082802180,0.29516231,44882.0,44881.0,0.01091872]
[1633082804380,0.29516231,44882.0,44881.0,0.00025366]
[1633082804980,0.52194531,44882.0,44881.0,0.00025366]
[1633082805181,0.333603,44882.0,44881.0,0.00025366]
[1633082805783,0.52320484,44882.0,44881.0,0.00025366]
[1633082806582,0.52320484,44882.0,44881.0,0.01091874]
[1633082806986,0.226783,44881.0,44880.0,0.00020922]
[1633082807185,0.24444802,44881.0,44880.0,0.00020922]
[1633082809984,0.25027975,44881.0,44880.0,0.00020922]
[1633082811984,0.25027975,44881.0,44880.0,0.00554057]
[1633082811985,0.24444802,44881.0,44880.0,0.00554057]
[1633082812185,0.05682,44881.0,44880.0,0.00554057]
[1633082813390,0.24279695,44881.0,44880.0,0.00554057]
[1633082815586,0.24279695,44881.0,44880.0,0.00020922]
[1633082815791,0.24862868,44881.0,44880.0,0.00020922]
[1633082816588,0.06265173,44881.0,44880.0,0.00020922]
[1633082816795,0.06265173,44881.0,44880.0,1.74660865]
[1633082816989,0.06265173,44881.0,44880.0,1.83855543]
[1633082817189,0.06265173,44881.0,44880.0,1.74713875]
[1633082817391,0.05682,44881.0,44880.0,1.84893112]
[1633082817593,0.05682,44881.0,44880.0,1.75247012]
[1633082817791,0.05682,44881.0,44880.0,1.94634038]
[1633082817995,0.05682,44881.0,44880.0,1.93721352]
[1633082818192,0.04980417,44881.0,44880.0,0.68556637]
[1633082820593,0.05054646,44881.0,44880.0,0.68556637]
[1633082820992,0.05637819,44881.0,44880.0,0.680235]
[1633082821794,0.00657402,44881.0,44880.0,0.880035]
[1633082821996,0.05637819,44881.0,44880.0,0.680235]
[1633082822395,0.05637819,44881.0,44880.0,0.87658245]
[1633082822995,0.05054646,44881.0,44880.0,0.88191384]
[1633082823196,0.01906051,44881.0,44880.0,2.01726975]
[1633082823400,0.09900001,44884.0,44881.0,0.07179689]
[1633082823596,0.05682,44883.0,44882.0,1.25130832]
[1633082823799,0.05682,44883.0,44882.0,0.90130832]
[1633082824999,0.05682,44883.0,44882.0,0.90252214]
[1633082826598,0.0626488,44883.0,44882.0,0.90252214]
[1633082827400,0.0626488,44883.0,44882.0,1.90305224]
[1633082827804,0.0182476,44894.0,44884.0,1.44900001]
[1633082828004,0.0182476,44894.0,44893.0,0.85124411]
[1633082828303,0.0182476,44894.0,44893.0,1.27849409]
[1633082828498,0.0182476,44894.0,44893.0,0.66353869]
[1633082828700,0.0182476,44894.0,44893.0,0.34617037]
[1633082829100,0.0182476,44894.0,44893.0,0.68033437]
[1633082829300,0.0182476,44894.0,44893.0,0.89211737]
[1633082829900,0.0182476,44894.0,44893.0,0.86982828]
[1633082830504,0.0182476,44894.0,44893.0,0.9436138]
[1633082830903,0.0182476,44894.0,44893.0,0.86982828]
[1633082831103,0.0182476,44894.0,44893.0,0.96972828]
[1633082831905,0.0182476,44894.0,44893.0,0.96146668]
[1633082832103,0.02293958,44894.0,44893.0,0.96146668]
[1633082832303,0.02293958,44894.0,44893.0,1.41146668]
[1633082832504,0.02293958,44894.0,44893.0,1.41199678]
[1633082832905,0.01793958,44894.0,44893.0,0.96146668]
[1633082834106,0.0132476,44894.0,44893.0,1.1695283]